{"text_format":"1","workbook":"xlsx","n_sheets":1,"sheets":["Taul1"],"not_rendered":{"charts":0,"images":0,"macros":1,"external_links":0,"defined_names":1,"comments":0,"pivot_tables":0},"unopened":[],"bounds":{"document_bytes":16777216,"sheet_cells":100000,"rows_first":2000,"rows_last":500,"rows_between":2000,"halvings":0,"cell_chars":16384,"cell_head_chars":4096},"cells_cut":0,"cells_raw":0,"read":"whole","date_system":"1900"}

{"sheet":"Taul1","index":0,"n_rows":147,"n_cols":47,"rows_kept":147,"cut":false,"hidden":false,"merged":[]}
["Nimi","NimiJaSyntymä","Pisteet yht.","Piste KA / juostu kilpailu","Kilpailu","Kilpailija","Luokka","Pisteet","Johtajana","Kaikki päivät","Kilpailu","Kilpailija","Luokka","Pisteet","Johtajana","Kaikki päivät","Kilpailu","Kilpailija","Luokka","Pisteet","Johtajana","Kierrokset","Kilpailu","Kilpailija","Luokka","Pisteet","Johtajana","Kaikki päivät","Kilpailu","Kilpailija","Luokka","Pisteet","Johtajana","Kaikki päivät","Kilpailu","Kilpailija","Luokka","Pisteet","Johtajana","Kaikki päivät","Syntymäaika","Sukupuoli","Paino kg","Rotu","Sukutaulu",null,"Lisätiedot"]
["Sipsi","Sipsi44798",1286.2285917776624,{"$f":"AVERAGEIFS(H2:QN2,H$1:QN$1,\"Pisteet\",H2:QN2,\">0\")","v":214.37143196294372},"Jämin Syyskisa","Sonja Heinonen","DR8",194.41112321444962,"Ei","Kyllä","Jämin Syys-SM","Pasi Heinonen","DR8",201.2277119278117,"Ei","Kyllä","MiniDistance","Sonja Heinonen","DR",348.49921541311687,"Ei",4,"Jämin Talvi-SM1","Sonja Heinonen","Sp6",166.82921483507732,"Kyllä","Kyllä","Jämin Talvi-SM2","Pasi Heinonen","Sp8",182.13944319769419,"Ei","Kyllä","Jämin Kevätkisa","Sonja Heinonen","DR8",193.12188318951254,"Ei","Kyllä","2022-08-25","narttu",22,"x",{"$f":"HYPERLINK(AT2,\"Sukutaulu\")","v":"Sukutaulu"},"https://www.trekkhundregisteret.no/dog/65962-sipsi-sonja-pasi-heinonen/","Näytä tiedot"]
["Taimi","Taimi45293",1286.2285917776624,{"$f":"AVERAGEIFS(H3:QN3,H$1:QN$1,\"Pisteet\",H3:QN3,\">0\")","v":214.37143196294372},"Jämin Syyskisa","Sonja Heinonen","DR8",194.41112321444962,"Ei","Kyllä","Jämin Syys-SM","Pasi Heinonen","DR8",201.2277119278117,"Ei","Kyllä","MiniDistance","Sonja Heinonen","DR",348.49921541311687,"Ei",4,"Jämin Talvi-SM1","Sonja Heinonen","Sp6",166.82921483507732,"Kyllä","Kyllä","Jämin Talvi-SM2","Pasi Heinonen","Sp8",182.13944319769419,"Ei","Kyllä","Jämin Kevätkisa","Sonja Heinonen","DR8",193.12188318951254,"Ei","Kyllä","2024-01-02","narttu",24,"x",{"$f":"HYPERLINK(AT3,\"Sukutaulu\")","v":"Sukutaulu"},"https://www.trekkhundregisteret.no/dog/65970-taimi-sonja-pasi-heinonen/","Näytä tiedot"]
["Tuksu","Tuksu45293",1286.2285917776624,214.37143196294372,"Jämin Syyskisa","Sonja Heinonen","DR8",194.41112321444962,"Ei","Kyllä","Jämin Syys-SM","Pasi Heinonen","DR8",201.2277119278117,"Ei","Kyllä","MiniDistance","Sonja Heinonen","DR",348.49921541311687,"Ei",4,"Jämin Talvi-SM1","Sonja Heinonen","Sp6",166.82921483507732,"Ei","Kyllä","Jämin Talvi-SM2","Pasi Heinonen","Sp8",182.13944319769419,"Kyllä","Kyllä","Jämin Kevätkisa","Sonja Heinonen","DR8",193.12188318951254,"Kyllä","Kyllä","2024-01-02","narttu",24,"x",{"$f":"HYPERLINK(AT4,\"Sukutaulu\")","v":"Sukutaulu"},"https://www.trekkhundregisteret.no/dog/65969-tuksu-sonja-pasi-heinonen/","Näytä tiedot"]
["Olga","Olga43905",1175.7105125062444,195.95175208437408,"Jämin Syyskisa","Sonja Heinonen","DR8",194.41112321444962,"Kyllä","Kyllä","Jämin Syys-SM","Pasi Heinonen","DR8",201.2277119278117,"Kyllä","Kyllä","MiniDistance","Sonja Heinonen","DR",348.49921541311687,"Kyllä",4,"Jämin Talvi-SM1","Sonja Heinonen","Sp6",166.82921483507732,"Kyllä","Kyllä","Jämin Talvi-SM2","Pasi Heinonen","Sp8",94.095519398149591,"Ei","Ei","Jämin Kevätkisa","Lauri Kivioja","DR8",170.64772771763944,"Ei","Kyllä","2020-03-15","narttu",23,"x","Sukutaulu","https://www.trekkhundregisteret.no/dog/65956-olga-sonja-pasi-heinonen/","Näytä tiedot"]
["Sauli","Sauli44798",1119.3993769425849,223.87987538851698,"Jämin Syyskisa","Sonja Heinonen","DR8",194.41112321444962,"Kyllä","Kyllä","Jämin Syys-SM","Pasi Heinonen","DR8",201.2277119278117,"Kyllä","Kyllä","MiniDistance","Sonja Heinonen","DR",348.49921541311687,"Kyllä",4,null,null,null,null,"","","Jämin Talvi-SM2","Pasi Heinonen","Sp8",182.13944319769419,"Ei","Kyllä","Jämin Kevätkisa","Sonja Heinonen","DR8",193.12188318951254,"Ei","Kyllä","2022-08-25","uros",24,"x","Sukutaulu","https://www.trekkhundregisteret.no/dog/65961-sauli-sonja-pasi-heinonen/","Näytä tiedot"]
["Nuppu","Nuppu45095",940.63571675964647,235.15892918991162,"Jämin Syyskisa","Ville Rakkolainen","DR8",196.76846407729079,"Kyllä","Kyllä","Jämin Syys-SM","Ville Rakkolainen","DR8",198.18592235609833,"Kyllä","Kyllä","MiniDistance","Ville Rakkolainen","DR",364.83516923659789,"Kyllä",4,null,null,null,null,"","",null,null,null,null,"","","Jämin Kevätkisa","Kirsi Järvenpää","DR4",180.8461610896594,"Kyllä","Kyllä","2023-06-18","narttu",23,"x","Sukutaulu","https://www.trekkhundregisteret.no/dog/68159-nuppu-joonas-elena-kallio/","Näytä tiedot"]
["Fun Racing Origo","Fun Racing Origo44003",940.63571675964647,235.15892918991162,"Jämin Syyskisa","Ville Rakkolainen","DR8",196.76846407729079,"Kyllä","Kyllä","Jämin Syys-SM","Ville Rakkolainen","DR8",198.18592235609833,"Kyllä","Kyllä","MiniDistance","Ville Rakkolainen","DR",364.83516923659789,"Kyllä",4,null,null,null,null,"","",null,null,null,null,"","","Jämin Kevätkisa","Kirsi Järvenpää","DR4",180.8461610896594,"Kyllä","Kyllä","2020-06-21","narttu",23,"x","Sukutaulu","https://www.trekkhundregisteret.no/dog/52643-fun-racing-origo-hege-ingebrgtsen/","Näytä tiedot"]
["HappyHound Remus","HappyHound Remus44377",938.14622541513927,187.62924508302785,"Jämin Syyskisa","Tiina Hakala","DR4",186.69283281638718,"Kyllä","Kyllä","Jämin Syys-SM","Tiina Hakala","DR4",192.10989620928629,"Kyllä","Kyllä",null,null,null,null,"","","Jämin Talvi-SM1","Tiina Hakala","Sp2",179.91829970245314,"Kyllä","Kyllä","Jämin Talvi-SM2","Tiina Hakala","Sp4",197.02001320356129,"Kyllä","Kyllä","Jämin Kevätkisa","Tiina Hakala","DR4",182.40518348345131,"Kyllä","Kyllä","2021-06-30","uros",33,"x","Sukutaulu","https://www.trekkhundregisteret.no/dog/56010-happy-hound-remus-tiina-hakala/","Näytä tiedot"]
["HappyHound Rosvo","HappyHound Rosvo44377",938.14622541513927,{"$f":"AVERAGEIFS(H10:QN10,H$1:QN$1,\"Pisteet\",H10:QN10,\">0\")","v":187.62924508302785},"Jämin Syyskisa","Tiina Hakala","DR4",186.69283281638718,"Kyllä","Kyllä","Jämin Syys-SM","Tiina Hakala","DR4",192.10989620928629,"Kyllä","Kyllä",null,null,null,null,"","","Jämin Talvi-SM1","Tiina Hakala","Sp2",179.91829970245314,"Kyllä","Kyllä","Jämin Talvi-SM2","Tiina Hakala","Sp4",197.02001320356129,"Kyllä","Kyllä","Jämin Kevätkisa","Tiina Hakala","DR4",182.40518348345131,"Kyllä","Kyllä","2021-06-30","uros",32,"x","Sukutaulu","https://www.trekkhundregisteret.no/dog/56007-happy-hound-rosvo-tiina-hakala/","Näytä tiedot"]
["Rane","Rane45114",930.43728338762651,232.60932084690663,"Jämin Syyskisa","Ville Rakkolainen","DR8",196.76846407729079,"Ei","Kyllä","Jämin Syys-SM","Ville Rakkolainen","DR8",198.18592235609833,"Ei","Kyllä","MiniDistance","Ville Rakkolainen","DR",364.83516923659789,"Ei",4,null,null,null,null,"","",null,null,null,null,"","","Jämin Kevätkisa","Lauri Kivioja","DR8",170.64772771763944,"Ei","Kyllä","2023-07-07","uros",29,"x","Sukutaulu","https://www.trekkhundregisteret.no/dog/68161-rane-nina-teegen/","Näytä tiedot"]
["Pinkkisan's Funny Hachiko","Pinkkisan's Funny Hachiko43350",913.25193580080531,152.20865596680088,"Jämin Syyskisa","Johanna Pelli","DR8",169.42629754898059,"Ei","Kyllä","Jämin Syys-SM","Lauri Kivioja","DR8",165.20049764015818,"Ei","Kyllä","MiniDistance","Johanna pelli","DR",159.29502443072153,"Ei",2,"Jämin Talvi-SM1","Johanna Pelli","Sp6",167.44105049984807,"Ei","Kyllä","Jämin Talvi-SM2","Lauri Kivioja","Sp8",81.241337963457582,"Ei","Ei","Jämin Kevätkisa","Lauri Kivioja","DR8",170.64772771763944,"Ei","Kyllä","2018-09-07","uros",23,"siperianhusky ","Sukutaulu","https://jalostus.kennelliitto.fi/frmKoira.aspx?RekNo=FI58292/20&R=270","Näytä tiedot"]
["Sonsonin Aikamoinen Möykky","Sonsonin Aikamoinen Möykky43668",913.25193580080531,152.20865596680088,"Jämin Syyskisa","Johanna Pelli","DR8",169.42629754898059,"Kyllä","Kyllä","Jämin Syys-SM","Lauri Kivioja","DR8",165.20049764015818,"Kyllä","Kyllä","MiniDistance","Johanna pelli","DR",159.29502443072153,"Ei",2,"Jämin Talvi-SM1","Johanna Pelli","Sp6",167.44105049984807,"Kyllä","Kyllä","Jämin Talvi-SM2","Lauri Kivioja","Sp8",81.241337963457582,"Ei","Ei","Jämin Kevätkisa","Lauri Kivioja","DR8",170.64772771763944,"Kyllä","Kyllä","2019-07-22","uros",26.5,"siperianhusky","Sukutaulu","https://jalostus.kennelliitto.fi/frmKoira.aspx?RekNo=FI45125%2F19&R=270","Näytä tiedot"]
["Ahto","Ahto44390",892.53582943591141,223.13395735897785,"Jämin Syyskisa","Ville Rakkolainen","DR8",196.76846407729079,"Ei","Kyllä","Jämin Syys-SM","Ville Rakkolainen","DR8",198.18592235609833,"Ei","Kyllä","MiniDistance","Ville Rakkolainen","DR",364.83516923659789,"Ei",4,"Jämin Talvi-SM1","Milli Rakkolainen","Sp4J",132.74627376592437,"Ei","Kyllä",null,null,null,null,"","",null,null,null,null,"","","2021-07-13","uros",29,"x","Sukutaulu","https://www.trekkhundregisteret.no/dog/68157-ahto-joonas-elena-kallio/","Näytä tiedot"]
["Pinkkisan's Agent Triple X","Pinkkisan's Agent Triple X44104",836.19318001943066,139.36553000323843,"Jämin Syyskisa","Johanna Pelli","DR8",169.42629754898059,"Kyllä","Kyllä","Jämin Syys-SM","Lauri Kivioja","DR8",88.141741858783405,"Kyllä","Ei","MiniDistance","Johanna pelli","DR",159.29502443072153,"Kyllä",2,"Jämin Talvi-SM1","Johanna Pelli","Sp6",167.44105049984807,"Kyllä","Kyllä","Jämin Talvi-SM2","Lauri Kivioja","Sp8",81.241337963457582,"Kyllä","Ei","Jämin Kevätkisa","Lauri Kivioja","DR8",170.64772771763944,"Kyllä","Kyllä","2020-09-30","narttu",19,"siperianhusky ","Sukutaulu","https://jalostus.kennelliitto.fi/frmKoira.aspx?RekNo=FI58252/20&R=270","Näytä tiedot"]
["Sonsonin Aikamoinen Eppu","Sonsonin Aikamoinen Eppu43668",828.93443052031728,138.15573842005287,"Jämin Syyskisa","Johanna Pelli","DR8",169.42629754898059,"Ei","Kyllä","Jämin Syys-SM","Lauri Kivioja","DR8",165.20049764015818,"Ei","Kyllä","MiniDistance","Johanna pelli","DR",159.29502443072153,"Ei",2,"Jämin Talvi-SM1","Johanna Pelli","Sp6",167.44105049984807,"Ei","Kyllä","Jämin Talvi-SM2","Lauri Kivioja","Sp8",81.241337963457582,"Ei","Ei","Jämin Kevätkisa","Lauri Kivioja","DR8",86.330222437151377,"Ei","Ei","2019-07-22","uros",26,"siperianhusky ","Sukutaulu","https://jalostus.kennelliitto.fi/frmKoira.aspx?RekNo=FI45124%2F19&R=270","Näytä tiedot"]
["Soma","Soma44798",805.40430785020101,201.35107696255025,"Jämin Syyskisa","Michela Leppänen","DS2",161.58186111112286,"Kyllä","Kyllä","Jämin Syys-SM","Pasi Heinonen","DR8",201.2277119278117,"Ei","Kyllä","MiniDistance","Sonja Heinonen","DR",348.49921541311687,"Kyllä",4,null,null,null,null,"","","Jämin Talvi-SM2","Pasi Heinonen","Sp8",94.095519398149591,"Kyllä","Ei",null,null,null,null,"","","2022-08-25","narttu",23,"x","Sukutaulu","https://www.trekkhundregisteret.no/dog/67530-soma-sonja-pasi-heinonen/","Näytä tiedot"]
["Pate","Pate45095",759.78955566998707,253.26318522332903,"Jämin Syyskisa","Ville Rakkolainen","DR8",196.76846407729079,"Ei","Kyllä","Jämin Syys-SM","Ville Rakkolainen","DR8",198.18592235609833,"Ei","Kyllä","MiniDistance","Ville Rakkolainen","DR",364.83516923659789,"Ei",4,null,null,null,null,"","",null,null,null,null,"","",null,null,null,null,"","","2023-06-18","uros",29,"x","Sukutaulu","https://www.trekkhundregisteret.no/dog/68160-pate-joonas-elena-kallio/","Näytä tiedot"]
["Powerline Olli","Powerline Olli43905",759.78955566998707,253.26318522332903,"Jämin Syyskisa","Ville Rakkolainen","DR8",196.76846407729079,"Ei","Kyllä","Jämin Syys-SM","Ville Rakkolainen","DR8",198.18592235609833,"Ei","Kyllä","MiniDistance","Ville Rakkolainen","DR",364.83516923659789,"Ei",4,null,null,null,null,"","",null,null,null,null,"","",null,null,null,null,"","","2020-03-15","uros",26,"x","Sukutaulu","https://www.trekkhundregisteret.no/dog/68158-olli-sonja-pasi-heinonen/","Näytä tiedot"]
["Powerline Samppa","Powerline Samppa44798",759.78955566998707,253.26318522332903,"Jämin Syyskisa","Ville Rakkolainen","DR8",196.76846407729079,"Ei","Kyllä","Jämin Syys-SM","Ville Rakkolainen","DR8",198.18592235609833,"Ei","Kyllä","MiniDistance","Ville Rakkolainen","DR",364.83516923659789,"Ei",4,null,null,null,null,"","",null,null,null,null,"","",null,null,null,null,"","","2022-08-25","uros",26,"x","Sukutaulu","https://www.trekkhundregisteret.no/dog/67497-samppa-sonja-pasi-heinonen/","Näytä tiedot"]
["HappyHound Romulus","HappyHound Romulus44377",758.2279257126861,189.55698142817153,"Jämin Syyskisa","Tiina Hakala","DR4",186.69283281638718,"Ei","Kyllä","Jämin Syys-SM","Tiina Hakala","DR4",192.10989620928629,"Ei","Kyllä",null,null,null,null,"","",null,null,null,null,"","","Jämin Talvi-SM2","Tiina Hakala","Sp4",197.02001320356129,"Ei","Kyllä","Jämin Kevätkisa","Tiina Hakala","DR4",182.40518348345131,"Ei","Kyllä","2021-06-30","uros",35,"x","Sukutaulu","https://www.trekkhundregisteret.no/dog/56009-happy-hound-romulus-tiina-hakala/","Näytä tiedot"]
["Hippi (Jippi23)","Hippi (Jippi23)45095",732.30827381604968,183.07706845401242,"Jämin Syyskisa","Sonja Heinonen","DR8",98.365280888872846,"Ei","Ei","Jämin Syys-SM","Pasi Heinonen","DR8",103.30433431636585,"Ei","Ei","MiniDistance","Sonja Heinonen","DR",348.49921541311687,"Ei",4,null,null,null,null,"","","Jämin Talvi-SM2","Pasi Heinonen","Sp8",182.13944319769419,"Kyllä","Kyllä",null,null,null,null,"","","2023-06-18","narttu",22,"x","Sukutaulu","https://www.trekkhundregisteret.no/dog/65964-jippi23-joonas-elena-kallio/","Näytä tiedot"]
["Fun Racing Niitti","Fun Racing Niitti43964",726.80413095404685,242.26804365134896,"Jämin Syyskisa","Ville Rakkolainen","DR8",196.76846407729079,"Ei","Kyllä","Jämin Syys-SM","Lauri Kivioja","DR8",165.20049764015818,"Kyllä","Kyllä","MiniDistance","Ville Rakkolainen","DR",364.83516923659789,"Ei",4,null,null,null,null,"","",null,null,null,null,"","",null,null,null,null,"","","2020-05-13","narttu",23,"x","Sukutaulu","https://www.trekkhundregisteret.no/dog/52226-fun-racing-niitti-hege-ingebrgtsen/","Näytä tiedot"]
["Hietasen Taika","Hietasen Taika45017",711.32785992105778,237.10928664035259,"Jämin Syyskisa","Milli Rakkolainen","DS1Y/J",148.30676832836156,"Kyllä","Kyllä","Jämin Syys-SM","Ville Rakkolainen","DR8",198.18592235609833,"Ei","Kyllä","MiniDistance","Ville Rakkolainen","DR",364.83516923659789,"Ei",4,null,null,null,null,"","",null,null,null,null,"","",null,null,null,null,"","","2023-04-01","narttu",29,"x","Sukutaulu","https://www.trekkhundregisteret.no/dog/60921-hietasen-taika-jutta-tuukka-turkka/","Näytä tiedot"]
["Villiviimas Fantastinen Nala","Villiviimas Fantastinen Nala44352",680.69076691282874,136.13815338256575,"Jämin Syyskisa","Camilla Backman-Koskinen","DS2",124.69109986780626,"Kyllä","Kyllä","Jämin Syys-SM","Camilla Backman-Koskinen","DS2",134.95473092095909,"Kyllä","Kyllä",null,null,null,null,"","","Jämin Talvi-SM1","Camilla Backman-Koskinen","Sp6",140.16013146262412,"Kyllä","Kyllä","Jämin Talvi-SM2","Camilla Backman-Koskinen","Sp4",140.1575480676658,"Kyllä","Kyllä","Jämin Kevätkisa","Joonas Koskinen","DS2",140.7272565937734,"Kyllä","Kyllä","2021-06-05","narttu",21,"siperianhusky","Sukutaulu","https://jalostus.kennelliitto.fi/frmKoira.aspx?RekNo=FI59166%2F21&R=270","Näytä tiedot"]
["Huruhukan Alwari Tuohitorvi","Huruhukan Alwari Tuohitorvi44283",675.63303915098652,112.60550652516442,"Jämin Syyskisa","Josefiina Santala","DR4",136.44931177008885,"Kyllä","Kyllä","Jämin Syys-SM","Josefiina Santala","DR4 ",143.66237781571209,"Kyllä","Kyllä","MiniDistance","Josefiina Santala","DR",75.647171800504324,"Kyllä",2,"Jämin Talvi-SM1","Josefiina Santala","Sp6",113.07184745840902,"Kyllä","Kyllä","Jämin Talvi-SM2","Josefiina Santala","Sp8",99.261642573804323,"Kyllä","Kyllä","Jämin Kevätkisa","Josefiina Santala","DS2",107.54068773246783,"Kyllä","Kyllä","2021-03-28","uros",20.5,"siperianhusky ","Sukutaulu","https://jalostus.kennelliitto.fi/frmKoira.aspx?RekNo=FI26353/21&R=270","Näytä tiedot"]
["Loitsuttu Anyon","Loitsuttu Anyon44771",675.63303915098652,112.60550652516442,"Jämin Syyskisa","Josefiina Santala","DR4",136.44931177008885,"Ei","Kyllä","Jämin Syys-SM","Josefiina Santala","DR4 ",143.66237781571209,"Ei","Kyllä","MiniDistance","Josefiina Santala","DR",75.647171800504324,"Ei",2,"Jämin Talvi-SM1","Josefiina Santala","Sp6",113.07184745840902,"Ei","Kyllä","Jämin Talvi-SM2","Josefiina Santala","Sp8",99.261642573804323,"Ei","Kyllä","Jämin Kevätkisa","Josefiina Santala","DS2",107.54068773246783,"Kyllä","Kyllä","2022-07-29","uros",21.5,"siperianhusky ","Sukutaulu","https://jalostus.kennelliitto.fi/frmKoira.aspx?RekNo=FI53004/22&R=270","Näytä tiedot"]
["Särmä","Särmä44798",630.67547881161727,157.66886970290432,"Jämin Syyskisa","Ilona Suutari","DS2",156.19237127917702,"Kyllä","Kyllä","Jämin Syys-SM","Lauri Kivioja","DR8",165.20049764015818,"Ei","Kyllä","MiniDistance","Johanna pelli","DR",159.29502443072153,"Kyllä",2,"Jämin Talvi-SM1","Ilona Suutari","Sp2",149.98758546156057,"Kyllä","Kyllä",null,null,null,null,"","",null,null,null,null,"","","2022-08-25","uros",26,"x","Sukutaulu","https://www.trekkhundregisteret.no/dog/65963-sarma-sonja-pasi-heinonen/","Näytä tiedot"]
["McAhon Vandaali","McAhon Vandaali45269",583.3091836524444,145.8272959131111,"Jämin Syyskisa","Johanna Pelli","DR8",169.42629754898059,"Ei","Kyllä","Jämin Syys-SM","Lauri Kivioja","DR8",165.20049764015818,"Ei","Kyllä",null,null,null,null,"","","Jämin Talvi-SM1","Johanna Pelli","Sp6",167.44105049984807,"Ei","Kyllä","Jämin Talvi-SM2","Lauri Kivioja","Sp8",81.241337963457582,"Ei","Ei",null,null,null,null,"","","2023-12-09","narttu",21,"siperianhusky ","Sukutaulu","https://jalostus.kennelliitto.fi/frmKoira.aspx?RekNo=FI12756/24&R=270","Näytä tiedot"]
["Lumikiisan Taitava Titania","Lumikiisan Taitava Titania45134",568.09235141851866,113.61847028370373,"Jämin Syyskisa","Josefiina Santala","DR4",136.44931177008885,"Kyllä","Kyllä","Jämin Syys-SM","Josefiina Santala","DR4 ",143.66237781571209,"Kyllä","Kyllä","MiniDistance","Josefiina Santala","DR",75.647171800504324,"Kyllä",2,"Jämin Talvi-SM1","Josefiina Santala","Sp6",113.07184745840902,"Ei","Kyllä","Jämin Talvi-SM2","Josefiina Santala","Sp8",99.261642573804323,"Ei","Kyllä",null,null,null,null,"","","2023-07-27","uros",24,"siperianhusky ","Sukutaulu","https://jalostus.kennelliitto.fi/frmKoira.aspx?RekNo=FI46648/23&R=270","Näytä tiedot"]
["Lumikiisan Taitava Narnia","Lumikiisan Taitava Narnia45134",568.09235141851866,113.61847028370373,"Jämin Syyskisa","Josefiina Santala","DR4",136.44931177008885,"Ei","Kyllä","Jämin Syys-SM","Josefiina Santala","DR4 ",143.66237781571209,"Ei","Kyllä","MiniDistance","Josefiina Santala","DR",75.647171800504324,"Ei",2,"Jämin Talvi-SM1","Josefiina Santala","Sp6",113.07184745840902,"Ei","Kyllä","Jämin Talvi-SM2","Josefiina Santala","Sp8",99.261642573804323,"Ei","Kyllä",null,null,null,null,"","","2023-07-27","uros",27,"siperianhusky ","Sukutaulu","https://jalostus.kennelliitto.fi/frmKoira.aspx?RekNo=FI46645/23&R=270","Näytä tiedot"]
["Mezcal","Mezcal44670",538.04956547091797,179.34985515697267,null,"","",null,"","","Jämin Syys-SM","Pekka Niemi","DS2",182.69227133645552,"Kyllä","Kyllä",null,null,null,null,"","",null,null,null,null,"","","Jämin Talvi-SM2","Pekka Niemi","Sp4",178.87327926989474,"Kyllä","Kyllä","Jämin Kevätkisa","Pekka Niemi","DS2",176.48401486456774,"Kyllä","Kyllä","2022-04-19","narttu",28,"x","Sukutaulu","https://www.trekkhundregisteret.no/dog/58133-mezcal-veronika-navratilova-and-vaclav-vancura/","Näytä tiedot"]
["Albus","Albus44390",529.63878787401188,176.54626262467062,"Jämin Syyskisa","Michela Leppänen","DS2",161.58186111112286,"Kyllä","Kyllä","Jämin Syys-SM","Pasi Heinonen","DR8",201.2277119278117,"Ei","Kyllä",null,null,null,null,"","","Jämin Talvi-SM1","Sonja Heinonen","Sp6",166.82921483507732,"Kyllä","Kyllä",null,null,null,null,"","",null,null,null,null,"","","2021-07-13","uros",24,"x","Sukutaulu","https://www.trekkhundregisteret.no/dog/65965-albus-joonas-elena-kallio/","Näytä tiedot"]
["Lumikiisan Onnellinen Tytti","Lumikiisan Onnellinen Tytti44132",524.24410805474599,{"$f":"AVERAGEIFS(H34:QN34,H$1:QN$1,\"Pisteet\",H34:QN34,\">0\")","v":131.0610270136865},null,"","",null,"","","Jämin Syys-SM","Camilla Backman-Koskinen","DS2",134.95473092095909,"Kyllä","Kyllä",null,null,null,null,"","","Jämin Talvi-SM1","Camilla Backman-Koskinen","Sp6",140.16013146262412,"Kyllä","Kyllä","Jämin Talvi-SM2","Camilla Backman-Koskinen","Sp4",140.1575480676658,"Kyllä","Kyllä","Jämin Kevätkisa","Camilla Backman-Koskinen","DR4",108.97169760349701,"Kyllä","Kyllä","2020-10-28","narttu",25,"siperianhusky","Sukutaulu","https://jalostus.kennelliitto.fi/frmKoira.aspx?RekNo=FI10983%2F21&R=270","Näytä tiedot"]
["Termagant's Eclipse","Termagant's Eclipse45223",521.7088902160865,173.90296340536216,null,"","",null,"","","Jämin Syys-SM","Janica Kindt","DR4",178.10042083962941,"Ei","Kyllä",null,null,null,null,"","",null,null,null,null,"","","Jämin Talvi-SM2","Janica Kindt","Sp4",177.20791746471366,"Ei","Kyllä","Jämin Kevätkisa","Janica Kindt","DR4",166.40055191174349,"Ei","Kyllä","2023-10-24","uros",35,"lyhytkarvainen saksanseisoja ","Sukutaulu","https://jalostus.kennelliitto.fi/frmKoira.aspx?RekNo=FI51469%2F23&R=119","Näytä tiedot"]
["Lumikiisan Mahtava Nova","Lumikiisan Mahtava Nova43668",513.98047700159316,128.49511925039829,"Jämin Syyskisa","Camilla Backman-Koskinen","DS2",124.69109986780626,"Kyllä","Kyllä",null,null,null,null,"","",null,null,null,null,"","","Jämin Talvi-SM1","Camilla Backman-Koskinen","Sp6",140.16013146262412,"Ei","Kyllä","Jämin Talvi-SM2","Camilla Backman-Koskinen","Sp4",140.1575480676658,"Ei","Kyllä","Jämin Kevätkisa","Camilla Backman-Koskinen","DR4",108.97169760349701,"Kyllä","Kyllä","2019-07-22","narttu",22,"siperianhusky","Sukutaulu","https://jalostus.kennelliitto.fi/frmKoira.aspx?RekNo=FI48042/19&R=270","Näytä tiedot"]
["HappyHound Rinsessa","HappyHound Rinsessa44377",480.05686665508716,160.01895555169571,null,"","",null,"","","Jämin Syys-SM","Tiina Hakala","DR4",192.10989620928629,"Ei","Kyllä",null,null,null,null,"","",null,null,null,null,"","","Jämin Talvi-SM2","Tiina Hakala","Sp4",197.02001320356129,"Ei","Kyllä","Jämin Kevätkisa","Tiina Hakala","DR4",90.926957242239553,"Ei","Ei","2021-06-30","narttu",30,"x","Sukutaulu","https://www.trekkhundregisteret.no/dog/56011-happy-hound-rinsessa-tiina-hakala/","Näytä tiedot"]
["My Flaming Dreamtale","My Flaming Dreamtale43943",425.71548310514993,141.90516103504999,"Jämin Syyskisa","Sini Riihelä","DR4",142.33358839074134,"Ei","Kyllä",null,null,null,null,"","",null,null,null,null,"","",null,null,null,null,"","","Jämin Talvi-SM2","Sini Riihelä","Sp4",109.95561098500342,"Ei","Kyllä","Jämin Kevätkisa","Sini Riihelä","DS2",173.42628372940516,"Kyllä","Kyllä","2020-04-22","uros",22,"siperianhusky","Sukutaulu","https://jalostus.kennelliitto.fi/frmKoira.aspx?RekNo=FI31858%2F20&R=270","Näytä tiedot"]
["My Flaming Dreamaker","My Flaming Dreamaker43943",425.71548310514993,141.90516103504999,"Jämin Syyskisa","Sini Riihelä","DR4",142.33358839074134,"Kyllä","Kyllä",null,null,null,null,"","",null,null,null,null,"","",null,null,null,null,"","","Jämin Talvi-SM2","Sini Riihelä","Sp4",109.95561098500342,"Kyllä","Kyllä","Jämin Kevätkisa","Sini Riihelä","DS2",173.42628372940516,"Kyllä","Kyllä","2020-04-22","narttu",18,"siperianhusky","Sukutaulu","https://jalostus.kennelliitto.fi/frmKoira.aspx?RekNo=FI31859/20&R=270","Näytä tiedot"]
["Maximus","Maximus45438",421.04493612406333,140.34831204135443,null,"","",null,"","",null,null,null,null,"","",null,null,null,null,"","","Jämin Talvi-SM1","Camilla Backman-Koskinen","Sp6",140.16013146262412,"Ei","Kyllä","Jämin Talvi-SM2","Camilla Backman-Koskinen","Sp4",140.1575480676658,"Kyllä","Kyllä","Jämin Kevätkisa","Joonas Koskinen","DS2",140.7272565937734,"Kyllä","Kyllä","2024-05-26","uros",26,"siperianhusky","Sukutaulu","https://jalostus.kennelliitto.fi/frmKoira.aspx?RekNo=FI36039%2F24&R=270","Näytä tiedot"]
["Sonsonin Banana Joe","Sonsonin Banana Joe44438",419.33011618094508,139.77670539364837,null,"","",null,"","",null,null,null,null,"","",null,null,null,null,"","","Jämin Talvi-SM1","Johanna Pelli","Sp6",167.44105049984807,"Ei","Kyllä","Jämin Talvi-SM2","Lauri Kivioja","Sp8",81.241337963457582,"Ei","Ei","Jämin Kevätkisa","Lauri Kivioja","DR8",170.64772771763944,"Ei","Kyllä","2021-08-30","uros",26,"siperianhusky ","Sukutaulu","https://jalostus.kennelliitto.fi/frmKoira.aspx?RekNo=FI55166/21&R=270","Näytä tiedot"]
["Uura","Uura45492",375.26132638720674,187.63066319360337,null,"","",null,"","",null,null,null,null,"","",null,null,null,null,"","",null,null,null,null,"","","Jämin Talvi-SM2","Pasi Heinonen","Sp8",182.13944319769419,"Ei","Kyllä","Jämin Kevätkisa","Sonja Heinonen","DR8",193.12188318951254,"Kyllä","Kyllä","2024-07-19","uros",23,"x","Sukutaulu","https://www.trekkhundregisteret.no/dog/65967-uura-sonja-pasi-heinonen/","Näytä tiedot"]
["Kivijärven Alma","Kivijärven Alma43423",372.62001265144289,124.2066708838143,null,"","",null,"","","Jämin Syys-SM","Ville Väänänen","DS2",130.57122736182953,"Kyllä","Kyllä",null,null,null,null,"","",null,null,null,null,"","","Jämin Talvi-SM2","Aava Säkäjärvi","Junioriluokka 10-16v",120.68772321467145,"Kyllä","Kyllä","Jämin Kevätkisa","Ville Väänänen","DS2",121.36106207494193,"Kyllä","Kyllä","2018-11-19","narttu",22,"siperianhusky ","Sukutaulu","https://jalostus.kennelliitto.fi/frmKoira.aspx?RekNo=FI12754/19&R=270","Näytä tiedot"]
["Biso","Biso44872",355.35729413446245,177.67864706723122,null,"","",null,"","",null,null,null,null,"","",null,null,null,null,"","",null,null,null,null,"","","Jämin Talvi-SM2","Pekka Niemi","Sp4",178.87327926989474,"Kyllä","Kyllä","Jämin Kevätkisa","Pekka Niemi","DS2",176.48401486456774,"Kyllä","Kyllä","2022-11-07","narttu",25,"x","Sukutaulu","https://www.trekkhundregisteret.no/dog/59860-ps-biso-pavlina-bohunova/","Näytä tiedot"]
["Kaaos","Kaaos44204",343.60846937645715,171.80423468822858,null,"","",null,"","",null,null,null,null,"","",null,null,null,null,"","",null,null,null,null,"","","Jämin Talvi-SM2","Janica Kindt","Sp4",177.20791746471366,"Kyllä","Kyllä","Jämin Kevätkisa","Janica Kindt","DR4",166.40055191174349,"Ei","Kyllä","2021-01-08","uros",30,"saksanseisoja ","Sukutaulu","https://jalostus.kennelliitto.fi/frmKoira.aspx?RekNo=FI15932/21&R=119","Näytä tiedot"]
["Taica","Taica44204",343.60846937645715,171.80423468822858,null,"","",null,"","",null,null,null,null,"","",null,null,null,null,"","",null,null,null,null,"","","Jämin Talvi-SM2","Janica Kindt","Sp4",177.20791746471366,"Kyllä","Kyllä","Jämin Kevätkisa","Janica Kindt","DR4",166.40055191174349,"Kyllä","Kyllä","2021-01-08","narttu",25,"saksanseisoja ","Sukutaulu","https://jalostus.kennelliitto.fi/frmKoira.aspx?RekNo=FI15933%2F21&R=119","Näytä tiedot"]
["Kuurametsän N´joy","Kuurametsän N´joy44842",342.85191601994808,171.42595800997404,"Jämin Syyskisa","Sampsa Mäki-Arvela","DR8",162.75525455182321,"Ei","Kyllä","Jämin Syys-SM","Sampsa Mäki-Arvela","DR8",180.09666146812486,"Ei","Kyllä",null,null,null,null,"","",null,null,null,null,"","",null,null,null,null,"","",null,null,null,null,"","","2022-10-08","narttu",23,"siperianhusky","Sukutaulu","https://jalostus.kennelliitto.fi/frmKoira.aspx?RekNo=FI55105%2F22&R=270","Näytä tiedot"]
["Kuurametsän Glacier","Kuurametsän Glacier44842",342.85191601994808,171.42595800997404,"Jämin Syyskisa","Sampsa Mäki-Arvela","DR8",162.75525455182321,"Ei","Kyllä","Jämin Syys-SM","Sampsa Mäki-Arvela","DR8",180.09666146812486,"Ei","Kyllä",null,null,null,null,"","",null,null,null,null,"","",null,null,null,null,"","",null,null,null,null,"","","2022-10-08","uros",25,"siperianhusky","Sukutaulu","https://jalostus.kennelliitto.fi/frmKoira.aspx?RekNo=FI55103%2F22&R=270","Näytä tiedot"]
["McAhon Unavailable","McAhon Unavailable45014",342.85191601994808,171.42595800997404,"Jämin Syyskisa","Sampsa Mäki-Arvela","DR8",162.75525455182321,"Ei","Kyllä","Jämin Syys-SM","Sampsa Mäki-Arvela","DR8",180.09666146812486,"Ei","Kyllä",null,null,null,null,"","",null,null,null,null,"","",null,null,null,null,"","",null,null,null,null,"","","2023-03-29","narttu",21,"siperianhusky","Sukutaulu","https://jalostus.kennelliitto.fi/frmKoira.aspx?RekNo=FI26649%2F23&R=270","Näytä tiedot"]
["McAhon Uncontrolled","McAhon Uncontrolled45014",342.85191601994808,171.42595800997404,"Jämin Syyskisa","Sampsa Mäki-Arvela","DR8",162.75525455182321,"Kyllä","Kyllä","Jämin Syys-SM","Sampsa Mäki-Arvela","DR8",180.09666146812486,"Kyllä","Kyllä",null,null,null,null,"","",null,null,null,null,"","",null,null,null,null,"","",null,null,null,null,"","","2023-03-29","uros",25,"siperianhusky","Sukutaulu","https://jalostus.kennelliitto.fi/frmKoira.aspx?RekNo=FI26648%2F23&R=270","Näytä tiedot"]
["Kivijärven Banjo","Kivijärven Banjo43629",342.85191601994808,171.42595800997404,"Jämin Syyskisa","Sampsa Mäki-Arvela","DR8",162.75525455182321,"Ei","Kyllä","Jämin Syys-SM","Sampsa Mäki-Arvela","DR8",180.09666146812486,"Kyllä","Kyllä",null,null,null,null,"","",null,null,null,null,"","",null,null,null,null,"","",null,null,null,null,"","","2019-06-13","uros",27,"siperianhusky","Sukutaulu","https://jalostus.kennelliitto.fi/frmKoira.aspx?RekNo=FI46190%2F19","Näytä tiedot"]
["Kivijärven Balalaika","Kivijärven Balalaika43629",342.85191601994808,171.42595800997404,"Jämin Syyskisa","Sampsa Mäki-Arvela","DR8",162.75525455182321,"Kyllä","Kyllä","Jämin Syys-SM","Sampsa Mäki-Arvela","DR8",180.09666146812486,"Kyllä","Kyllä",null,null,null,null,"","",null,null,null,null,"","",null,null,null,null,"","",null,null,null,null,"","","2019-06-13","uros",24,"siperianhusky","Sukutaulu","https://jalostus.kennelliitto.fi/frmKoira.aspx?RekNo=FI46190%2F19&R=270","Näytä tiedot"]
["Kivijärven Casi","Kivijärven Casi45244",342.85191601994808,171.42595800997404,"Jämin Syyskisa","Sampsa Mäki-Arvela","DR8",162.75525455182321,"Ei","Kyllä","Jämin Syys-SM","Sampsa Mäki-Arvela","DR8",180.09666146812486,"Ei","Kyllä",null,null,null,null,"","",null,null,null,null,"","",null,null,null,null,"","",null,null,null,null,"","","2023-11-14","uros",25,"siperianhusky","Sukutaulu","https://jalostus.kennelliitto.fi/frmKoira.aspx?RekNo=FI13341%2F24&R=270","Näytä tiedot"]
["ALKUVOIMAN THE JOKER","ALKUVOIMAN THE JOKER44721",319.15326828090849,159.57663414045425,"Jämin Syyskisa","Milla Gröndahl","DR4",160.83333681305805,"Kyllä","Kyllä",null,null,null,null,"","",null,null,null,null,"","",null,null,null,null,"","",null,null,null,null,"","","Jämin Kevätkisa","Milla Gröndahl","DR4",158.31993146785044,"Kyllä","Kyllä","2022-06-09","uros",26,"siperianhusky ","Sukutaulu","https://jalostus.kennelliitto.fi/frmKoira.aspx?RekNo=FI41524%2F22&R=270","Näytä tiedot"]
["ALKUVOIMAN TWO-FACE","ALKUVOIMAN TWO-FACE44721",319.15326828090849,159.57663414045425,"Jämin Syyskisa","Milla Gröndahl","DR4",160.83333681305805,"Ei","Kyllä",null,null,null,null,"","",null,null,null,null,"","",null,null,null,null,"","",null,null,null,null,"","","Jämin Kevätkisa","Milla Gröndahl","DR4",158.31993146785044,"Ei","Kyllä","2022-06-09","uros",25,"siperianhusky ","Sukutaulu","https://jalostus.kennelliitto.fi/frmKoira.aspx?RekNo=FI41527%2F22&R=270","Näytä tiedot"]
["ALKUVOIMAN THE RIDDLER","ALKUVOIMAN THE RIDDLER44721",319.15326828090849,159.57663414045425,"Jämin Syyskisa","Milla Gröndahl","DR4",160.83333681305805,"Ei","Kyllä",null,null,null,null,"","",null,null,null,null,"","",null,null,null,null,"","",null,null,null,null,"","","Jämin Kevätkisa","Milla Gröndahl","DR4",158.31993146785044,"Ei","Kyllä","2022-06-09","uros",27,"siperianhusky ","Sukutaulu","https://jalostus.kennelliitto.fi/frmKoira.aspx?RekNo=FI41525%2F22&R=270","Näytä tiedot"]
["Happy Hound Rakki","Happy Hound Rakki44377",313.59243485558375,156.79621742779187,null,"","",null,"","",null,null,null,null,"","",null,null,null,null,"","","Jämin Talvi-SM1","Milli Rakkolainen","Sp4J",132.74627376592437,"Kyllä","Kyllä",null,null,null,null,"","","Jämin Kevätkisa","Kirsi Järvenpää","DS2",180.8461610896594,"Kyllä","Kyllä","2021-06-30","uros",30,"eurohound","Sukutaulu","https://www.trekkhundregisteret.nhttps://www.trekkhundregisteret.no/dog/56008-happy-hound-rakki-tiina-hakala","Näytä tiedot"]
["Wintry Joonatan","Wintry Joonatan43527",313.38222524823129,156.69111262411565,null,"","",null,"","",null,null,null,null,"","","MiniDistance","Anne Riekki","DR",187.60588232376759,"Kyllä",4,null,null,null,null,"","",null,null,null,null,"","","Jämin Kevätkisa","Anne Riekki","DR4",125.77634292446373,"Kyllä","Kyllä","2019-03-03","uros",24,"siperianhusky","Sukutaulu","https://jalostus.kennelliitto.fi/frmKoira.aspx?RekNo=FI21382/19","Näytä tiedot"]
["Taikakallion Roihu","Taikakallion Roihu44979",313.38222524823129,156.69111262411565,null,"","",null,"","",null,null,null,null,"","","MiniDistance","Anne Riekki","DR",187.60588232376759,"Kyllä",4,null,null,null,null,"","",null,null,null,null,"","","Jämin Kevätkisa","Anne Riekki","DR4",125.77634292446373,"Ei","Kyllä","2023-02-22","uros",25,"siperianhusky","Sukutaulu","https://jalostus.kennelliitto.fi/frmKoira.aspx?RekNo=FI19221/23","Näytä tiedot"]
["My Flaming Rebel At Heart","My Flaming Rebel At Heart44715",308.80053367412717,102.93351122470905,"Jämin Syyskisa","Sini Riihelä","DR4",142.33358839074134,"Ei","Kyllä",null,null,null,null,"","",null,null,null,null,"","",null,null,null,null,"","","Jämin Talvi-SM2","Sini Riihelä","Sp4",109.95561098500342,"Ei","Kyllä","Jämin Kevätkisa","Camilla Backman-Koskinen","DR4",56.511334298382408,"Ei","Ei","2022-06-03","narttu",17,"siperianhusky","Sukutaulu","https://jalostus.kennelliitto.fi/frmKoira.aspx?RekNo=FI39254/22&R=270","Näytä tiedot"]
["Ruska","Ruska44467",287.98066183271771,95.993553944239238,null,"","",null,"","",null,null,null,null,"","","MiniDistance","Josefiina Santala","DR",75.647171800504324,"Ei",2,"Jämin Talvi-SM1","Josefiina Santala","Sp6",113.07184745840902,"Ei","Kyllä","Jämin Talvi-SM2","Josefiina Santala","Sp8",99.261642573804323,"Ei","Kyllä",null,null,null,null,"","","2021-09-28","narttu",17,"siperianhusky","Sukutaulu","https://jalostus.kennelliitto.fi/frmKoira.aspx?RekNo=FI10975%2F22&R=270","Näytä tiedot"]
["ABSOLUTELY SILVER","ABSOLUTELY SILVER44750",271.24192081220042,90.413973604066811,null,"","",null,"","","Jämin Syys-SM","Wilma Hänninen","DS2",101.06350184354112,"Kyllä","Kyllä",null,null,null,null,"","","Jämin Talvi-SM1","Wilma Hänninen","Sp6",88.998009500278386,"Kyllä","Kyllä","Jämin Talvi-SM2","Wilma Hänninen","Sp4",81.18040946838093,"Kyllä","Kyllä",null,null,null,null,"","","2022-07-08","narttu",19,"jakutianlaika","Sukutaulu","https://jalostus.kennelliitto.fi/frmKoira.aspx?RekNo=FI28674/23&R=365","Näytä tiedot"]
["ARTIC TRAVEL BRONZITE","ARTIC TRAVEL BRONZITE44004",271.24192081220042,90.413973604066811,null,"","",null,"","","Jämin Syys-SM","Wilma Hänninen","DS2",101.06350184354112,"Kyllä","Kyllä",null,null,null,null,"","","Jämin Talvi-SM1","Wilma Hänninen","Sp6",88.998009500278386,"Kyllä","Kyllä","Jämin Talvi-SM2","Wilma Hänninen","Sp4",81.18040946838093,"Kyllä","Kyllä",null,null,null,null,"","","2020-06-22","narttu",19,"jakutianlaika","Sukutaulu","https://jalostus.kennelliitto.fi/frmKoira.aspx?RekNo=FI19536%2F22&R=365","Näytä tiedot"]
["Kivijärven Ceppu","Kivijärven Ceppu45244",253.61791092945595,126.80895546472797,"Jämin Syyskisa","Sampsa Mäki-Arvela","DR8",162.75525455182321,"Ei","Kyllä","Jämin Syys-SM","Sampsa Mäki-Arvela","DR8",90.862656377632717,"Ei","Ei",null,null,null,null,"","",null,null,null,null,"","",null,null,null,null,"","",null,null,null,null,"","","2023-11-14","narttu",22,"siperianhusky","Sukutaulu","https://jalostus.kennelliitto.fi/frmKoira.aspx?RekNo=FI13345%2F24&R=270","Näytä tiedot"]
["Ritarinkannus","Ritarinkannus43820",251.93228943677144,125.96614471838572,null,"","",null,"","","Jämin Syys-SM","Ville Väänänen","DS2",130.57122736182953,"Kyllä","Kyllä",null,null,null,null,"","",null,null,null,null,"","",null,null,null,null,"","","Jämin Kevätkisa","Ville Väänänen","DS2",121.36106207494193,"Kyllä","Kyllä","2019-12-21","uros",23,"siperianhusky ","Sukutaulu","https://jalostus.kennelliitto.fi/frmKoira.aspx?RekNo=EJ17119/20&R=270","Näytä tiedot"]
["Sleepless Holy Smoke","Sleepless Holy Smoke45234",239.0300802359925,{"$f":"AVERAGEIFS(H66:QN66,H$1:QN$1,\"Pisteet\",H66:QN66,\">0\")","v":79.676693411997505},null,"","",null,"","",null,null,null,null,"","","MiniDistance","Josefiina Santala","DR",75.647171800504324,"Ei",2,null,null,null,null,"","","Jämin Talvi-SM2","Eeva Ylinurmikoski","Sp4",74.447681116841011,"Ei","Kyllä","Jämin Kevätkisa","Eeva Ylinurmikoski","DR4",88.935227318647136,"Ei","Kyllä","2023-11-04","uros",23.5,"siperianhusky","Sukutaulu","https://jalostus.kennelliitto.fi/frmKoira.aspx?RekNo=FI10164/24&R=270","Näytä tiedot"]
["Kummitus","Kummitus44000",239.0300802359925,79.676693411997505,null,"","",null,"","",null,null,null,null,"","","MiniDistance","Josefiina Santala","DR",75.647171800504324,"Ei",2,null,null,null,null,"","","Jämin Talvi-SM2","Eeva Ylinurmikoski","Sp4",74.447681116841011,"Kyllä","Kyllä","Jämin Kevätkisa","Eeva Ylinurmikoski","DR4",88.935227318647136,"Kyllä","Kyllä","2020-06-18","uros",24,"siperianhusky","Sukutaulu","https://jalostus.kennelliitto.fi/frmKoira.aspx?RekNo=FI47022%2F20&R=270","Näytä tiedot"]
["Arctic Power spiderman","Arctic Power spiderman44253",239.0300802359925,79.676693411997505,null,"","",null,"","",null,null,null,null,"","","MiniDistance","Josefiina Santala","DR",75.647171800504324,"Kyllä",2,null,null,null,null,"","","Jämin Talvi-SM2","Eeva Ylinurmikoski","Sp4",74.447681116841011,"Kyllä","Kyllä","Jämin Kevätkisa","Eeva Ylinurmikoski","DR4",88.935227318647136,"Kyllä","Kyllä","2021-02-26","uros",24,"siperianhusky",{"$f":"HYPERLINK(AT68,\"Sukutaulu\")","v":"Sukutaulu"},"https://jalostus.kennelliitto.fi/frmKoira.aspx?RekNo=FI23103/21&R=270","Näytä tiedot"]
["Fi KVA-REK Vetoava Muotka \"Muotka\"","Fi KVA-REK Vetoava Muotka \"Muotka\"44260",225.806342925661,225.806342925661,null,"","",null,"","",null,null,null,null,"","","MiniDistance","Pauli Mansikkaniemi","DR",225.806342925661,"Kyllä",4,null,null,null,null,"","",null,null,null,null,"","",null,null,null,null,"","","2021-03-05","uros",27,"siperianhusky","Sukutaulu","https://jalostus.kennelliitto.fi/frmKoira.aspx?RekNo=FI22309/21&R=270","Näytä tiedot"]
["FI KVA-REK Vetoava Elegia \"Elegia\"","FI KVA-REK Vetoava Elegia \"Elegia\"42764",225.806342925661,225.806342925661,null,"","",null,"","",null,null,null,null,"","","MiniDistance","Pauli Mansikkaniemi","DR",225.806342925661,"Kyllä",4,null,null,null,null,"","",null,null,null,null,"","",null,null,null,null,"","","2017-01-29","narttu",26,"siperianhusky","Sukutaulu","https://jalostus.kennelliitto.fi/frmKoira.aspx?RekNo=FI17715/17&R=270","Näytä tiedot"]
["Scream 'Dream'","Scream 'Dream'44136",225.806342925661,225.806342925661,null,"","",null,"","",null,null,null,null,"","","MiniDistance","Pauli Mansikkaniemi","DR",225.806342925661,"Ei",4,null,null,null,null,"","",null,null,null,null,"","",null,null,null,null,"","","2020-11-01","uros",27,"siperianhusky","Sukutaulu","https://jalostus.kennelliitto.fi/frmKoira.aspx?RekNo=FI37487%2F22&R=270","Näytä tiedot"]
["FI KVA-REK Vetoava Inui \"Inui\"","FI KVA-REK Vetoava Inui \"Inui\"43537",225.806342925661,225.806342925661,null,"","",null,"","",null,null,null,null,"","","MiniDistance","Pauli Mansikkaniemi","DR",225.806342925661,"Ei",4,null,null,null,null,"","",null,null,null,null,"","",null,null,null,null,"","","2019-03-13","narttu",22,"siperianhusky","Sukutaulu","https://jalostus.kennelliitto.fi/frmKoira.aspx?RekNo=FI24294/19&R=270","Näytä tiedot"]
["Vetoava Jiekna \"Jiekna\"","Vetoava Jiekna \"Jiekna\"43541",225.806342925661,225.806342925661,null,"","",null,"","",null,null,null,null,"","","MiniDistance","Pauli Mansikkaniemi","DR",225.806342925661,"Ei",4,null,null,null,null,"","",null,null,null,null,"","",null,null,null,null,"","","2019-03-17","uros",24,"siperianhusky","Sukutaulu","https://jalostus.kennelliitto.fi/frmKoira.aspx?RekNo=FI24066/19&R=270","Näytä tiedot"]
["Vetoava Puik \"Puik\"","Vetoava Puik \"Puik\"45232",225.806342925661,225.806342925661,null,"","",null,"","",null,null,null,null,"","","MiniDistance","Pauli Mansikkaniemi","DR",225.806342925661,"Ei",4,null,null,null,null,"","",null,null,null,null,"","",null,null,null,null,"","","2023-11-02","uros",24,"siperianhusky","Sukutaulu","https://jalostus.kennelliitto.fi/frmKoira.aspx?RekNo=FI52602/23&R=270","Näytä tiedot"]
["Sysilouhen Astrid \"Astrid\"","Sysilouhen Astrid \"Astrid\"43653",225.806342925661,225.806342925661,null,"","",null,"","",null,null,null,null,"","","MiniDistance","Pauli Mansikkaniemi","DR",225.806342925661,"Ei",4,null,null,null,null,"","",null,null,null,null,"","",null,null,null,null,"","","2019-07-07","narttu",20,"siperianhusky","Sukutaulu","https://jalostus.kennelliitto.fi/frmKoira.aspx?RekNo=FI39580/19&R=270","Näytä tiedot"]
["FI KVA-REK Gamot \"Gamot\"","FI KVA-REK Gamot \"Gamot\"43013",225.806342925661,225.806342925661,null,"","",null,"","",null,null,null,null,"","","MiniDistance","Pauli Mansikkaniemi","DR",225.806342925661,"Ei",4,null,null,null,null,"","",null,null,null,null,"","",null,null,null,null,"","","2017-10-05","uros",27,"siperianhusky","Sukutaulu","https://jalostus.kennelliitto.fi/frmKoira.aspx?RekNo=FI11197/18&R=270","Näytä tiedot"]
["Vetoava Irgad \"Irgad\"","Vetoava Irgad \"Irgad\"43537",225.806342925661,225.806342925661,null,"","",null,"","",null,null,null,null,"","","MiniDistance","Pauli Mansikkaniemi","DR",225.806342925661,"Ei",4,null,null,null,null,"","",null,null,null,null,"","",null,null,null,null,"","","2019-03-13","uros",32,"siperianhusky","Sukutaulu","https://jalostus.kennelliitto.fi/frmKoira.aspx?RekNo=FI24288/19&R=270","Näytä tiedot"]
["Vetoava Qarmaq \"Qarmaq\"","Vetoava Qarmaq \"Qarmaq\"45237",225.806342925661,225.806342925661,null,"","",null,"","",null,null,null,null,"","","MiniDistance","Pauli Mansikkaniemi","DR",225.806342925661,"Ei",4,null,null,null,null,"","",null,null,null,null,"","",null,null,null,null,"","","2023-11-07","uros",32,"siperianhusky","Sukutaulu","https://jalostus.kennelliitto.fi/frmKoira.aspx?RekNo=FI52966/23&R=270","Näytä tiedot"]
["Vetoava Qittaq \"Qittaq\"","Vetoava Qittaq \"Qittaq\"45237",225.806342925661,225.806342925661,null,"","",null,"","",null,null,null,null,"","","MiniDistance","Pauli Mansikkaniemi","DR",225.806342925661,"Ei",4,null,null,null,null,"","",null,null,null,null,"","",null,null,null,null,"","","2023-11-07","uros",29,"siperianhusky","Sukutaulu","https://jalostus.kennelliitto.fi/frmKoira.aspx?RekNo=FI52963/23&R=270","Näytä tiedot"]
["Sonsonin Banana Ufo","Sonsonin Banana Ufo44438",221.40146942608169,110.70073471304084,null,"","",null,"","",null,null,null,null,"","",null,null,null,null,"","","Jämin Talvi-SM1","Camilla Backman-Koskinen","Sp6",140.16013146262412,"Ei","Kyllä","Jämin Talvi-SM2","Lauri Kivioja","Sp8",81.241337963457582,"Kyllä","Ei",null,null,null,null,"","","2021-08-30","narttu",20,"siperianhusky","Sukutaulu","https://jalostus.kennelliitto.fi/frmKoira.aspx?RekNo=FI55167/21&R=270","Näytä tiedot"]
["SKYLINE CREAK'S FIRE IN THE SKY","SKYLINE CREAK'S FIRE IN THE SKY44493",211.74745146720539,211.74745146720539,null,"","",null,"","",null,null,null,null,"","","MiniDistance","Toni Kaivolainen","DR",211.74745146720539,"Kyllä",4,null,null,null,null,"","",null,null,null,null,"","",null,null,null,null,"","","2021-10-24","narttu",20,"siperianhusky","Sukutaulu","https://jalostus.kennelliitto.fi/frmKoira.aspx?RekNo=FI59710/21","Näytä tiedot"]
["MIDNIGHT'S TWINKLE NIETOS","MIDNIGHT'S TWINKLE NIETOS44937",211.74745146720539,211.74745146720539,null,"","",null,"","",null,null,null,null,"","","MiniDistance","Toni Kaivolainen","DR",211.74745146720539,"Kyllä",4,null,null,null,null,"","",null,null,null,null,"","",null,null,null,null,"","","2023-01-11","uros",26,"siperianhusky","Sukutaulu","https://jalostus.kennelliitto.fi/frmKoira.aspx?RekNo=FI15180%2F23&R=270","Näytä tiedot"]
["MIDNIGHT'S TWINKLE FÄBÄ","MIDNIGHT'S TWINKLE FÄBÄ44937",211.74745146720539,211.74745146720539,null,"","",null,"","",null,null,null,null,"","","MiniDistance","Toni Kaivolainen","DR",211.74745146720539,"Ei",4,null,null,null,null,"","",null,null,null,null,"","",null,null,null,null,"","","2023-01-11","uros",28,"siperianhusky","Sukutaulu","https://jalostus.kennelliitto.fi/frmKoira.aspx?RekNo=FI15178%2F23&R=270","Näytä tiedot"]
["MIDNIGHT'S TWINKLE HILPPA","MIDNIGHT'S TWINKLE HILPPA44937",211.74745146720539,211.74745146720539,null,"","",null,"","",null,null,null,null,"","","MiniDistance","Toni Kaivolainen","DR",211.74745146720539,"Ei",4,null,null,null,null,"","",null,null,null,null,"","",null,null,null,null,"","","2023-01-11","narttu",20,"siperianhusky","Sukutaulu","https://jalostus.kennelliitto.fi/frmKoira.aspx?RekNo=FI15179%2F23&R=270","Näytä tiedot"]
["YAYE-NON EAT MY DUST","YAYE-NON EAT MY DUST43668",211.74745146720539,211.74745146720539,null,"","",null,"","",null,null,null,null,"","","MiniDistance","Toni Kaivolainen","DR",211.74745146720539,"Ei",4,null,null,null,null,"","",null,null,null,null,"","",null,null,null,null,"","","2019-07-22","narttu",20,"siperianhusky","Sukutaulu","https://jalostus.kennelliitto.fi/frmKoira.aspx?RekNo=FI42494/19&R=270","Näytä tiedot"]
["LUMIKIISAN UNIIKKI NALA","LUMIKIISAN UNIIKKI NALA45373",211.74745146720539,211.74745146720539,null,"","",null,"","",null,null,null,null,"","","MiniDistance","Toni Kaivolainen","DR",211.74745146720539,"Ei",4,null,null,null,null,"","",null,null,null,null,"","",null,null,null,null,"","","2024-03-22","narttu",20,"siperianhusky","Sukutaulu","https://jalostus.kennelliitto.fi/frmKoira.aspx?RekNo=FI30540/24&R=270","Näytä tiedot"]
["VETOAVA PAKTU","VETOAVA PAKTU45232",211.74745146720539,211.74745146720539,null,"","",null,"","",null,null,null,null,"","","MiniDistance","Toni Kaivolainen","DR",211.74745146720539,"Ei",4,null,null,null,null,"","",null,null,null,null,"","",null,null,null,null,"","","2023-11-02","uros",26,"siperianhusky","Sukutaulu","https://jalostus.kennelliitto.fi/frmKoira.aspx?RekNo=FI52599/23&R=270","Näytä tiedot"]
["VETOAVA OFELIA","VETOAVA OFELIA44975",211.74745146720539,211.74745146720539,null,"","",null,"","",null,null,null,null,"","","MiniDistance","Toni Kaivolainen","DR",211.74745146720539,"Ei",4,null,null,null,null,"","",null,null,null,null,"","",null,null,null,null,"","","2023-02-18","narttu",20,"siperianhusky","Sukutaulu","https://jalostus.kennelliitto.fi/frmKoira.aspx?RekNo=FI19312%2F23&R=270","Näytä tiedot"]
["Uma","Uma45492",193.12188318951254,193.12188318951254,null,"","",null,"","",null,null,null,null,"","",null,null,null,null,"","",null,null,null,null,"","",null,null,null,null,"","","Jämin Kevätkisa","Sonja Heinonen","DR8",193.12188318951254,"Ei","Kyllä","2024-07-19","narttu",23,"x","Sukutaulu","https://www.trekkhundregisteret.no/dog/65966-uma-sonja-pasi-heinonen/","Näytä tiedot"]
["Wintry Jum Jum","Wintry Jum Jum43527",187.60588232376759,187.60588232376759,null,"","",null,"","",null,null,null,null,"","","MiniDistance","Anne Riekki","DR",187.60588232376759,"Kyllä",4,null,null,null,null,"","",null,null,null,null,"","",null,null,null,null,"","","2019-03-03","uros",25,"siperianhusky","Sukutaulu","https://jalostus.kennelliitto.fi/frmKoira.aspx?RekNo=FI21380/19","Näytä tiedot"]
["Soul n Mate Xxl","Soul n Mate Xxl43546",187.60588232376759,187.60588232376759,null,"","",null,"","",null,null,null,null,"","","MiniDistance","Anne Riekki","DR",187.60588232376759,"Kyllä",4,null,null,null,null,"","",null,null,null,null,"","",null,null,null,null,"","","2019-03-22","uros",25,"siperianhusky","Sukutaulu","https://jalostus.kennelliitto.fi/frmKoira.aspx?RekNo=FI29877/19&R=270","Näytä tiedot"]
["Taikakallion Velho","Taikakallion Velho44979",187.60588232376759,187.60588232376759,null,"","",null,"","",null,null,null,null,"","","MiniDistance","Anne Riekki","DR",187.60588232376759,"Ei",4,null,null,null,null,"","",null,null,null,null,"","",null,null,null,null,"","","2023-02-22","uros",23,"siperianhusky","Sukutaulu","https://jalostus.kennelliitto.fi/frmKoira.aspx?RekNo=FI19222/23","Näytä tiedot"]
["Korpikylän Rin Tin Tin","Korpikylän Rin Tin Tin45335",187.60588232376759,187.60588232376759,null,"","",null,"","",null,null,null,null,"","","MiniDistance","Anne Riekki","DR",187.60588232376759,"Ei",4,null,null,null,null,"","",null,null,null,null,"","",null,null,null,null,"","","2024-02-13","narttu",21,"siperianhusky","Sukutaulu","https://jalostus.kennelliitto.fi/frmKoira.aspx?RekNo=FI18501/24","Näytä tiedot"]
["Korpikylän Risto Reipas","Korpikylän Risto Reipas45335",187.60588232376759,187.60588232376759,null,"","",null,"","",null,null,null,null,"","","MiniDistance","Anne Riekki","DR",187.60588232376759,"Ei",4,null,null,null,null,"","",null,null,null,null,"","",null,null,null,null,"","","2024-02-13","uros",24,"siperianhusky","Sukutaulu","https://jalostus.kennelliitto.fi/frmKoira.aspx?RekNo=FI18498%2F24&R=270","Näytä tiedot"]
["Cela","Cela43565",182.69227133645552,182.69227133645552,null,"","",null,"","","Jämin Syys-SM","Pekka Niemi","DS2",182.69227133645552,"Kyllä","Kyllä",null,null,null,null,"","",null,null,null,null,"","",null,null,null,null,"","",null,null,null,null,"","","2019-04-10","narttu",25,"lyhytkarvainen saksanseisoja ","Sukutaulu","https://www.trekkhundregisteret.no/dog/66978-ciri-cirin-dalveniehku-ciri-cirin/","Näytä tiedot"]
["Atte","Atte45472",180.8461610896594,180.8461610896594,null,"","",null,"","",null,null,null,null,"","",null,null,null,null,"","",null,null,null,null,"","",null,null,null,null,"","","Jämin Kevätkisa","Kirsi Järvenpää","DR4",180.8461610896594,"Ei","Kyllä","2024-06-29","uros",26,"eurohound","Sukutaulu","https://www.trekkhundregisteret.no/dog/68285-atte-ville-rakkolainen/","Näytä tiedot"]
["Pivo","Pivo44385",178.87327926989474,178.87327926989474,null,"","",null,"","",null,null,null,null,"","",null,null,null,null,"","",null,null,null,null,"","","Jämin Talvi-SM2","Pekka Niemi","Sp4",178.87327926989474,"Ei","Kyllä",null,null,null,null,"","","2021-07-08","uros",35,"x","Sukutaulu","https://www.trekkhundregisteret.no/dog/66982-pivo-hana-stipalova/","Näytä tiedot"]
["Bambi","Bambi43202",178.87327926989474,{"$f":"AVERAGEIFS(H98:QN98,H$1:QN$1,\"Pisteet\",H98:QN98,\">0\")","v":178.87327926989474},null,"","",null,"","",null,null,null,null,"","",null,null,null,null,"","",null,null,null,null,"","","Jämin Talvi-SM2","Pekka Niemi","Sp4",178.87327926989474,"Ei","Kyllä",null,null,null,null,"","","2018-04-12","narttu",25,"x","Sukutaulu","https://www.trekkhundregisteret.no/dog/46830-bambi-jenni-kreivi/","Näytä tiedot"]
["Termagant's Crocotta","Termagant's Crocotta44204",178.10042083962941,178.10042083962941,null,"","",null,"","","Jämin Syys-SM","Janica Kindt","DR4 ",178.10042083962941,"Kyllä","Kyllä",null,null,null,null,"","",null,null,null,null,"","",null,null,null,null,"","",null,null,null,null,"","","2021-01-08","narttu",24,"lyhytkarvainen saksanseisoja ","Sukutaulu","https://jalostus.kennelliitto.fi/frmKoira.aspx?RekNo=FI15933/21&R=119","Näytä tiedot"]
["Thunderclap Dobraja Serdce","Thunderclap Dobraja Serdce44202",170.17841896865932,85.089209484329658,null,"","",null,"","",null,null,null,null,"","",null,null,null,null,"","","Jämin Talvi-SM1","Wilma Hänninen","Sp6",88.998009500278386,"Ei","Kyllä","Jämin Talvi-SM2","Wilma Hänninen","Sp4",81.18040946838093,"Ei","Kyllä",null,null,null,null,"","","2021-01-06","narttu",22,"jakutianlaika","Sukutaulu","https://jalostus.kennelliitto.fi/frmKoira.aspx?RekNo=FI20422%2F21&R=365","Näytä tiedot"]
["Jåttilshappypluto","Jåttilshappypluto44722",166.40055191174349,166.40055191174349,null,"","",null,"","",null,null,null,null,"","",null,null,null,null,"","",null,null,null,null,"","",null,null,null,null,"","","Jämin Kevätkisa","Janica Kindt","DR4",166.40055191174349,"Kyllä","Kyllä","2022-06-10","uros",32,"x","Sukutaulu","En tiedö","Näytä tiedot"]
["Liekki (Salama)","Liekki (Salama)42222",166.11698472759269,166.11698472759269,null,"","",null,"","","Jämin Syys-SM","Tuomas Notko","DS2 ",166.11698472759269,"Kyllä","Kyllä",null,null,null,null,"","",null,null,null,null,"","",null,null,null,null,"","",null,null,null,null,"","","2015-08-06","uros",25,"x","Sukutaulu","https://www.trekkhundregisteret.no/dog/43889-thedogriders-yur-salama-samuli-nissinen/","Näytä tiedot"]
["Jehu","Jehu43910",166.11698472759269,166.11698472759269,null,"","",null,"","","Jämin Syys-SM","Tuomas Notko","DS2 ",166.11698472759269,"Kyllä","Kyllä",null,null,null,null,"","",null,null,null,null,"","",null,null,null,null,"","",null,null,null,null,"","","2020-03-20","uros",31,"x","Sukutaulu","https://www.trekkhundregisteret.no/dog/55386-jehu-jenni-kreivi/","Näytä tiedot"]
["Rafi","Rafi44146",161.57137066440475,161.57137066440475,null,"","",null,"","",null,null,null,null,"","",null,null,null,null,"","",null,null,null,null,"","",null,null,null,null,"","","Jämin Kevätkisa","Sirpa Säilä","DR4",161.57137066440475,"Ei","Kyllä","2020-11-11","uros",29,"alaskanhusky ","Sukutaulu","https://www.trekkhundregisteret.no/dog/53928-hidden-trail-krum-mari-anttila/?fbclid=IwdGRzaARQayhjbGNrBFBq1GV4dG4DYWVtAjExAHNydGMGYXBwX2lkDDM1MDY4NTUzMTcyOAABHoRRmWM6hQcLAwz4De0GXvNGTdWnMHqMdXJIP4rX_J3-4ST8ohqygsUPjmzP_aem_pbdhn-Vi5BbrKrTO9ltUsg&sfnsn=wa","Näytä tiedot"]
["Koda","Koda44720",161.57137066440475,161.57137066440475,null,"","",null,"","",null,null,null,null,"","",null,null,null,null,"","",null,null,null,null,"","",null,null,null,null,"","","Jämin Kevätkisa","Sirpa Säilä","DR4",161.57137066440475,"Kyllä","Kyllä","2022-06-08","uros",31,"alaskanhusky ","Sukutaulu","Kodan siskon taustat: Trekkhundregisteret https://share.google/WW9gvWz3rJSOxcnex","Näytä tiedot"]
["Kake","Kake45426",161.57137066440475,161.57137066440475,null,"","",null,"","",null,null,null,null,"","",null,null,null,null,"","",null,null,null,null,"","",null,null,null,null,"","","Jämin Kevätkisa","Sirpa Säilä","DR4",161.57137066440475,"Kyllä","Kyllä","2024-05-14","uros",25,"alaskanhusky/bc-mix","Sukutaulu","Ei ole, isä samassa tiimissä juossut Rafi","Näytä tiedot"]
["Kirppu","Kirppu45426",161.57137066440475,161.57137066440475,null,"","",null,"","",null,null,null,null,"","",null,null,null,null,"","",null,null,null,null,"","",null,null,null,null,"","","Jämin Kevätkisa","Sirpa Säilä","DR4",161.57137066440475,"Ei","Kyllä","2024-05-14","uros",23,"ah/bc-mix","Sukutaulu","Ei ole, isä samassa tiimissä juossut Rafi","Näytä tiedot"]
["ALKUVOIMAN HARLEY QUINN","ALKUVOIMAN HARLEY QUINN44721",160.83333681305805,160.83333681305805,"Jämin Syyskisa","Milla Gröndahl","DR4",160.83333681305805,"Kyllä","Kyllä",null,null,null,null,"","",null,null,null,null,"","",null,null,null,null,"","",null,null,null,null,"","",null,null,null,null,"","","2022-06-09","narttu",17,"siperianhusky ","Sukutaulu","https://jalostus.kennelliitto.fi/frmKoira.aspx?RekNo=FI41523%2F22&R=270","Näytä tiedot"]
["Oikku","Oikku43905",158.31993146785044,158.31993146785044,null,"","",null,"","",null,null,null,null,"","",null,null,null,null,"","",null,null,null,null,"","",null,null,null,null,"","","Jämin Kevätkisa","Milla Gröndahl","DR4",158.31993146785044,"Kyllä","Kyllä","2020-03-15","narttu",22,"x","Sukutaulu","https://www.trekkhundregisteret.no/dog/65957-oikku-sonja-pasi-heinonen/","Näytä tiedot"]
["Fun racing Jagger","Fun racing Jagger43243",156.19237127917702,156.19237127917702,"Jämin Syyskisa","Ilona Suutari","DS2",156.19237127917702,"Kyllä","Kyllä",null,null,null,null,"","",null,null,null,null,"","",null,null,null,null,"","",null,null,null,null,"","",null,null,null,null,"","","2018-05-23","uros",24,"x","Sukutaulu","https://www.trekkhundregisteret.no/dog/68271-jagger-unknown-breeder/","Näytä tiedot"]
["Laika","Laika42657",154.11223019944939,154.11223019944939,null,"","",null,"","",null,null,null,null,"","","MiniDistance","Tiina Kaivolainen","DR",154.11223019944939,"Kyllä",4,null,null,null,null,"","",null,null,null,null,"","",null,null,null,null,"","","2016-10-14","narttu",20,"siperianhusky","Sukutaulu","https://jalostus.kennelliitto.fi/frmKoira.aspx?RekNo=FI53977%2F16&R=270","Näytä tiedot"]
["Lumi","Lumi42658",154.11223019944939,154.11223019944939,null,"","",null,"","",null,null,null,null,"","","MiniDistance","Tiina Kaivolainen","DR",154.11223019944939,"Ei",4,null,null,null,null,"","",null,null,null,null,"","",null,null,null,null,"","","2016-10-15","narttu",20,"siperianhusky","Sukutaulu","https://jalostus.kennelliitto.fi/frmKoira.aspx?RekNo=FI53981%2F16&R=270","Näytä tiedot"]
["Timi","Timi42773",154.11223019944939,154.11223019944939,null,"","",null,"","",null,null,null,null,"","","MiniDistance","Tiina Kaivolainen","DR",154.11223019944939,"Kyllä",4,null,null,null,null,"","",null,null,null,null,"","",null,null,null,null,"","","2017-02-07","uros",26,"siperianhusky","Sukutaulu","https://jalostus.kennelliitto.fi/frmKoira.aspx?RekNo=FI18600%2F17&R=270","Näytä tiedot"]
["Jafar","Jafar43131",154.11223019944939,154.11223019944939,null,"","",null,"","",null,null,null,null,"","","MiniDistance","Tiina Kaivolainen","DR",154.11223019944939,"Ei",4,null,null,null,null,"","",null,null,null,null,"","",null,null,null,null,"","","2018-01-31","uros",27,"siperianhusky","Sukutaulu","https://jalostus.kennelliitto.fi/frmKoira.aspx?RekNo=FI21074/18&R=270","Näytä tiedot"]
["Soul’n Mate Xxl","Soul’n Mate Xxl43546",146.84614785733052,146.84614785733052,"Jämin Syyskisa","Kirsi Järvenpää","DR4",146.84614785733052,"Kyllä","Kyllä",null,null,null,null,"","",null,null,null,null,"","",null,null,null,null,"","",null,null,null,null,"","",null,null,null,null,"","","2019-03-22","uros",26.5,"siperianhusky","Sukutaulu","https://jalostus.kennelliitto.fi/frmKoira.aspx?RekNo=FI29877/19","Näytä tiedot"]
["Wintry Hulivili","Wintry Hulivili44483",146.84614785733052,146.84614785733052,"Jämin Syyskisa","Kirsi Järvenpää","DR4",146.84614785733052,"Ei","Kyllä",null,null,null,null,"","",null,null,null,null,"","",null,null,null,null,"","",null,null,null,null,"","",null,null,null,null,"","","2021-10-14","uros",26,"siperianhusky","Sukutaulu","https://jalostus.kennelliitto.fi/frmKoira.aspx?RekNo=FI61676/21","Näytä tiedot"]
["Skyline Creak's Endless Echo","Skyline Creak's Endless Echo44032",145.56569936702221,145.56569936702221,"Jämin Syyskisa","Elisa Tuisku","DR4",145.56569936702221,"Ei","Kyllä",null,null,null,null,"","",null,null,null,null,"","",null,null,null,null,"","",null,null,null,null,"","",null,null,null,null,"","","2020-07-20","uros",23,"siperianhusky","Sukutaulu","https://jalostus.kennelliitto.fi/frmKoira.aspx?RekNo=FI43156/20&R=270","Näytä tiedot"]
["Kielonkukan Rosemary","Kielonkukan Rosemary43978",145.56569936702221,145.56569936702221,"Jämin Syyskisa","Elisa Tuisku","DR4",145.56569936702221,"Kyllä","Kyllä",null,null,null,null,"","",null,null,null,null,"","",null,null,null,null,"","",null,null,null,null,"","",null,null,null,null,"","","2020-05-27","narttu",19.5,"siperianhusky","Sukutaulu","https://jalostus.kennelliitto.fi/frmKoira.aspx?RekNo=FI34502/20&R=270","Näytä tiedot"]
["Lumikirsun Fantsu Fiona","Lumikirsun Fantsu Fiona45158",145.56569936702221,145.56569936702221,"Jämin Syyskisa","Elisa Tuisku","DR4",145.56569936702221,"Kyllä","Kyllä",null,null,null,null,"","",null,null,null,null,"","",null,null,null,null,"","",null,null,null,null,"","",null,null,null,null,"","","2023-08-20","narttu",17.5,"siperianhuskyì","Sukutaulu","https://jalostus.kennelliitto.fi/frmKoira.aspx?RekNo=FI44120/23&R=270","Näytä tiedot"]
["Lumikirsun Fantsu Fredi","Lumikirsun Fantsu Fredi45158",145.56569936702221,145.56569936702221,"Jämin Syyskisa","Elisa Tuisku","DR4",145.56569936702221,"Ei","Kyllä",null,null,null,null,"","",null,null,null,null,"","",null,null,null,null,"","",null,null,null,null,"","",null,null,null,null,"","","2023-08-20","uros",19.5,"siperianhusky","Sukutaulu","https://jalostus.kennelliitto.fi/frmKoira.aspx?RekNo=FI44123%2F23&R=270","Näytä tiedot"]
["My Flaming Powerpuff Blossom","My Flaming Powerpuff Blossom44195",142.33358839074134,142.33358839074134,"Jämin Syyskisa","Sini Riihelä","DR4",142.33358839074134,"Kyllä","Kyllä",null,null,null,null,"","",null,null,null,null,"","",null,null,null,null,"","",null,null,null,null,"","",null,null,null,null,"","","2020-12-30","narttu",17,"siperianhusky","Sukutaulu","https://jalostus.kennelliitto.fi/frmKoira.aspx?RekNo=FI16062/21&R=270","Näytä tiedot"]
["Lumikiisan Paras Cairo","Lumikiisan Paras Cairo44711",141.47138470199098,141.47138470199098,null,"","",null,"","",null,null,null,null,"","",null,null,null,null,"","","Jämin Talvi-SM1","Annimari Korte","Sp2",141.47138470199098,"Kyllä","Kyllä",null,null,null,null,"","",null,null,null,null,"","","2022-05-30","narttu",23,"siperianhusky","Sukutaulu","https://jalostus.kennelliitto.fi/frmKoira.aspx?RekNo=FI41780%2F22&R=270","Näytä tiedot"]
["Lumikiisan Uniikki Valencia","Lumikiisan Uniikki Valencia45373",141.47138470199098,141.47138470199098,null,"","",null,"","",null,null,null,null,"","",null,null,null,null,"","","Jämin Talvi-SM1","Annimari Korte","Sp2",141.47138470199098,"Kyllä","Kyllä",null,null,null,null,"","",null,null,null,null,"","","2024-03-22","narttu",19,"siperianhusky","Sukutaulu","https://jalostus.kennelliitto.fi/frmKoira.aspx?RekNo=FI30541/24&R=270","Näytä tiedot"]
["Seppo","Seppo43537",137.50625340179903,137.50625340179903,null,"","",null,"","",null,null,null,null,"","",null,null,null,null,"","",null,null,null,null,"","","Jämin Talvi-SM2","Emilia Kindt","Junioriluokka 10-16v",137.50625340179903,"Kyllä","Kyllä",null,null,null,null,"","","2019-03-13","uros",24,"alaskanhusky ","Sukutaulu","Ei ole sukutaulia linkata \nEmä Minni\nIsä Binko","Näytä tiedot"]
["Kaasu","KaasuKesäkuu jotain ",137.50625340179903,137.50625340179903,null,"","",null,"","",null,null,null,null,"","",null,null,null,null,"","",null,null,null,null,"","","Jämin Talvi-SM2","Emilia Kindt","Junioriluokka 10-16v",137.50625340179903,"Kyllä","Kyllä",null,null,null,null,"","","Kesäkuu jotain ","narttu",25,"saksanseisoja ","Sukutaulu","Ulkomaantuonti","Näytä tiedot"]
["Taikakallion Tuisku","Taikakallion Tuisku44979",125.77634292446373,125.77634292446373,null,"","",null,"","",null,null,null,null,"","",null,null,null,null,"","",null,null,null,null,"","",null,null,null,null,"","","Jämin Kevätkisa","Anne Riekki","DR4",125.77634292446373,"Kyllä","Kyllä","2023-02-22","narttu",20,"siperianhusky","Sukutaulu","https://jalostus.kennelliitto.fi/frmKoira.aspx?RekNo=FI19219%2F23&R=270","Näytä tiedot"]
["Taikakallion Viima","Taikakallion Viima44979",125.77634292446373,125.77634292446373,null,"","",null,"","",null,null,null,null,"","",null,null,null,null,"","",null,null,null,null,"","",null,null,null,null,"","","Jämin Kevätkisa","Anne Riekki","DR4",125.77634292446373,"Ei","Kyllä","2023-02-22","narttu",20,"siperianhusky","Sukutaulu","https://jalostus.kennelliitto.fi/frmKoira.aspx?RekNo=FI19220%2F23&R=270","Näytä tiedot"]
["Juksu","Juksu45412",123.55124198831982,123.55124198831982,null,"","",null,"","",null,null,null,null,"","",null,null,null,null,"","",null,null,null,null,"","",null,null,null,null,"","","Jämin Kevätkisa","Laura Säkäjärvi","DS2",123.55124198831982,"Kyllä","Kyllä","2024-04-30","uros",31.5,"eurohound","Sukutaulu","https://www.trekkhundregisteret.no/dog/63558-race-stars-prima-jolanta-bliuj/    (Sisko samasta pentueesta eli täysin sama suku, Juksu puuttuu vielä rekisteristä)","Näytä tiedot"]
["Juksu","Juksu45383",120.68772321467145,120.68772321467145,null,"","",null,"","",null,null,null,null,"","",null,null,null,null,"","",null,null,null,null,"","","Jämin Talvi-SM2","Aava Säkäjärvi","Junioriluokka 10-16v",120.68772321467145,"Kyllä","Kyllä",null,null,null,null,"","","2024-04-01","uros",31,"eurohound","Sukutaulu","https://www.trekkhundregisteret.no/dog/63558-race-stars-prima-jolanta-bliuj/","Näytä tiedot"]
["Manyway's Cover Me In Sunshine","Manyway's Cover Me In Sunshine44520",109.60265911119808,109.60265911119808,"Jämin Syyskisa","Päivi Keinänen","DS2",109.60265911119808,"Kyllä","Kyllä",null,null,null,null,"","",null,null,null,null,"","",null,null,null,null,"","",null,null,null,null,"","",null,null,null,null,"","","2021-11-20","narttu",22,"siperianhusky","Sukutaulu","https://jalostus.kennelliitto.fi/frmKoira.aspx?RekNo=FI62055%2F21&R=270","Näytä tiedot"]
["Noman's Empire Earthquake","Noman's Empire Earthquake43433",109.60265911119808,109.60265911119808,"Jämin Syyskisa","Päivi Keinänen","DS2",109.60265911119808,"Kyllä","Kyllä",null,null,null,null,"","",null,null,null,null,"","",null,null,null,null,"","",null,null,null,null,"","",null,null,null,null,"","","2018-11-29","uros",28,"siperianhusky","Sukutaulu","https://jalostus.kennelliitto.fi/frmKoira.aspx?RekNo=FI13990/19&R=270","Näytä tiedot"]
["Dragonflame's Sassy Siberian Girl","Dragonflame's Sassy Siberian Girl43241",108.97169760349701,108.97169760349701,null,"","",null,"","",null,null,null,null,"","",null,null,null,null,"","",null,null,null,null,"","",null,null,null,null,"","","Jämin Kevätkisa","Camilla Backman-Koskinen","DR4",108.97169760349701,"Ei","Kyllä","2018-05-21","narttu",23,"siperianhusky",{"$f":"HYPERLINK(AT132,\"Sukutaulu\")","v":"Sukutaulu"},"https://jalostus.kennelliitto.fi/frmKoira.aspx?RekNo=FI35055%2F18&R=270","Näytä tiedot"]
["Talismaanin Story of Tinkerbell","Talismaanin Story of Tinkerbell43653",104.24878240037916,104.24878240037916,null,"","",null,"","",null,null,null,null,"","",null,null,null,null,"","",null,null,null,null,"","",null,null,null,null,"","","Jämin Kevätkisa","Riina Sinervuo","DS2",104.24878240037916,"Kyllä","Kyllä","2019-07-07","narttu",22,"siperianhusky","Sukutaulu","https://jalostus.kennelliitto.fi/frmKoira.aspx?RekNo=FI40695/19&R=270","Näytä tiedot"]
["Talismaanin Delicatessen Cherry","Talismaanin Delicatessen Cherry45447",104.24878240037916,104.24878240037916,null,"","",null,"","",null,null,null,null,"","",null,null,null,null,"","",null,null,null,null,"","",null,null,null,null,"","","Jämin Kevätkisa","Riina Sinervuo","DS2",104.24878240037916,"Ei","Kyllä","2024-06-04","uros",22,"siperianhusky","Sukutaulu","https://jalostus.kennelliitto.fi/frmKoira.aspx?RekNo=FI35677%2F24&R=270","Näytä tiedot"]
["Tomorrow's Fighter Blossom","Tomorrow's Fighter Blossom44516",104.2209983935883,104.2209983935883,"Jämin Syyskisa","Iira Rantametsä","DS2",104.2209983935883,"Kyllä","Kyllä",null,null,null,null,"","",null,null,null,null,"","",null,null,null,null,"","",null,null,null,null,"","",null,null,null,null,"","","2021-11-16","narttu",20,"siperianhusky","Sukutaulu","https://jalostus.kennelliitto.fi/frmKoira.aspx?RekNo=FI10475%2F22&R=270","Näytä tiedot"]
["FROZEN EAR FINAL CHANCE","FROZEN EAR FINAL CHANCE45107",102.95552614250703,102.95552614250703,"Jämin Syyskisa","Ilpo Hacklin","DS2",102.95552614250703,"Kyllä","Kyllä",null,null,null,null,"","",null,null,null,null,"","",null,null,null,null,"","",null,null,null,null,"","",null,null,null,null,"","","2023-06-30","uros",40,"alaskanmalamuutti","Sukutaulu","https://jalostus.kennelliitto.fi/frmKoira.aspx?RekNo=FI38136%2F23&R=243","Näytä tiedot"]
["ATACIARA MENNINKÄINEN","ATACIARA MENNINKÄINEN44326",102.95552614250703,102.95552614250703,"Jämin Syyskisa","Ilpo Hacklin","DS2",102.95552614250703,"Kyllä","Kyllä",null,null,null,null,"","",null,null,null,null,"","",null,null,null,null,"","",null,null,null,null,"","",null,null,null,null,"","","2021-05-10","uros",42,"alaskanmalamuutti\t","Sukutaulu","https://jalostus.kennelliitto.fi/frmKoira.aspx?RekNo=FI34374%2F21&R=243","Näytä tiedot"]
["Vetoava Nieida","Vetoava Nieida44540",101.91893144646036,101.91893144646036,null,"","",null,"","",null,null,null,null,"","","MiniDistance","Mari Kalenius","DR",101.91893144646036,"Kyllä",2,null,null,null,null,"","",null,null,null,null,"","",null,null,null,null,"","","2021-12-10","narttu",18,"siperianhusky","Sukutaulu","https://jalostus.kennelliitto.fi/frmKoira.aspx?RekNo=FI12888%2F22&R=270","Näytä tiedot"]
["Tunturitarun Arktinen-Menijä","Tunturitarun Arktinen-Menijä44876",101.91893144646036,101.91893144646036,null,"","",null,"","",null,null,null,null,"","","MiniDistance","Mari Kalenius","DR",101.91893144646036,"Kyllä",2,null,null,null,null,"","",null,null,null,null,"","",null,null,null,null,"","","2022-11-11","uros",25,"siperianhusky","Sukutaulu","https://jalostus.kennelliitto.fi/frmKoira.aspx?RekNo=FI10137%2F23&R=270","Näytä tiedot"]
["Arktiska Vatti-Hatti","Arktiska Vatti-Hatti44733",101.91893144646036,101.91893144646036,null,"","",null,"","",null,null,null,null,"","","MiniDistance","Mari Kalenius","DR",101.91893144646036,"Ei",2,null,null,null,null,"","",null,null,null,null,"","",null,null,null,null,"","","2022-06-21","uros",25,"siperianhusky","Sukutaulu","https://jalostus.kennelliitto.fi/frmKoira.aspx?RekNo=FI33891%2F22&R=270","Näytä tiedot"]
["Sysilouhen Runolf","Sysilouhen Runolf43690",101.91893144646036,101.91893144646036,null,"","",null,"","",null,null,null,null,"","","MiniDistance","Mari Kalenius","DR",101.91893144646036,"Ei",2,null,null,null,null,"","",null,null,null,null,"","",null,null,null,null,"","","2019-08-13","uros",24,"siperianhusky","Sukutaulu","https://jalostus.kennelliitto.fi/frmKoira.aspx?RekNo=FI39575%2F19&R=270","Näytä tiedot"]
["Kulkijan mahtava malla","Kulkijan mahtava malla44392",99.102778467858315,99.102778467858315,"Jämin Syyskisa","Rhianon Rintamäki","DS2",99.102778467858315,"Kyllä","Kyllä",null,null,null,null,"","",null,null,null,null,"","",null,null,null,null,"","",null,null,null,null,"","",null,null,null,null,"","","2021-07-15","narttu",21,"jakutianlaika","Sukutaulu","https://jalostus.kennelliitto.fi/frmKoira.aspx?RekNo=FI53763%2F21&R=365","Näytä tiedot"]
["Slavinja saga","Slavinja saga45249",99.102778467858315,99.102778467858315,"Jämin Syyskisa","Rhianon Rintamäki","DS2",99.102778467858315,"Ei","Kyllä",null,null,null,null,"","",null,null,null,null,"","",null,null,null,null,"","",null,null,null,null,"","",null,null,null,null,"","","2023-11-19","narttu",17,"jakutianlaika","Sukutaulu","https://jalostus.kennelliitto.fi/frmKoira.aspx?RekNo=FI19165%2F25&R=365","Näytä tiedot"]
["Otimis Princess Of The Tower","Otimis Princess Of The Tower44060",95.315239595015726,95.315239595015726,null,"","",null,"","",null,null,null,null,"","",null,null,null,null,"","","Jämin Talvi-SM1","Jenni Lehtonen","Sp2",95.315239595015726,"Kyllä","Kyllä",null,null,null,null,"","",null,null,null,null,"","","2020-08-17","narttu",20,"samojedinkoira","Sukutaulu","https://jalostus.kennelliitto.fi/frmKoira.aspx?RekNo=FI48331/20&R=212","Näytä tiedot"]
["Ramzai Pink N Glitter","Ramzai Pink N Glitter44800",95.315239595015726,95.315239595015726,null,"","",null,"","",null,null,null,null,"","",null,null,null,null,"","","Jämin Talvi-SM1","Jenni Lehtonen","Sp2",95.315239595015726,"Kyllä","Kyllä",null,null,null,null,"","",null,null,null,null,"","","2022-08-27","narttu",17,"samojedinkoira","Sukutaulu","https://jalostus.kennelliitto.fi/frmKoira.aspx?RekNo=FI50095/22&R=212","Näytä tiedot"]
["Artic Travel Benitoite","Artic Travel Benitoite44004",88.998009500278386,88.998009500278386,null,"","",null,"","",null,null,null,null,"","",null,null,null,null,"","","Jämin Talvi-SM1","Wilma Hänninen","Sp6",88.998009500278386,"Ei","Kyllä",null,null,null,null,"","",null,null,null,null,"","","2020-06-22","uros",24,"jakutianlaika","Sukutaulu","https://jalostus.kennelliitto.fi/frmKoira.aspx?RekNo=FI12149%2F21&R=365","Näytä tiedot"]
["KALTIOKUMMUN LICORICE LOVE","KALTIOKUMMUN LICORICE LOVE45328",81.18040946838093,81.18040946838093,null,"","",null,"","",null,null,null,null,"","",null,null,null,null,"",null,null,null,null,null,"","","Jämin Talvi-SM2","Wilma Hänninen","Sp4",81.18040946838093,"Ei","Kyllä",null,"","",null,"","","2024-02-06","uros",25,"jakutianlaika","Sukutaulu","https://jalostus.kennelliitto.fi/frmKoira.aspx?RekNo=FI18442%2F24&R=365","Näytä tiedot"]